[Event "34th GER-ch Seniors-65 2022"]
[Site "Magdeburg"]
[Date "2022.08.12"]
[Round "1.1"]
[White "Boidman, Yuri"]
[Black "Lehmann, Manfred"]
[Result "1-0"]
[ECO "B22"]
[WhiteElo "2286"]
[BlackElo "1863"]
[Annotator "TA"]
[PlyCount "39"]
[EventDate "2022.08.12"]
[EventType "swiss"]
[EventCountry "GER"]
[SourceTitle "playchess.com"]
[Source "ChessBase"]
[SourceQuality "1"]
[TimeControl "40/5400+30:1800+30"]

{[%evp 14,39,36,31,54,33,46,53,47,25,47,11,37,25,62,54,61,33,48,52,99,97,125,118,186,191,175,168]} 1. e4 {[%emt 0:00:09]} c6 {[%emt 0:00:05]} 2. c4 {[%emt 0:00:19]} d5 {[%emt 0:04:44]} 3. exd5 {[%emt 0:00:11]} cxd5 {[%emt 0:00:02]} 4. cxd5 {[%emt 0:00:13]} Qxd5 {[%emt 0:00:02]} 5. d4 {[%emt 0:00:16]} Nc6 {[%emt 0:00:55]} 6. Nf3 {[%emt 0:00:21]} e6 {[%emt 0:05:25]} 7. Nc3 {[%emt 0:00:26]} Bb4 {[%emt 0:01:35]} 8. Bd3 {[%emt 0:02:24]} Qa5 {[%emt 0:14:18] B22: Sicilian: 2 c3.} 9. Bd2 {[%emt 0:01:57]} Nf6 {[%emt 0:05:16]} 10. O-O {[%emt 0:01:28]} O-O {[%emt 0:00:46] White is slightly better.} 11. a3 {[%emt 0:00:18]} Be7 {[%emt 0:07:46]} 12. Qe2 {[%emt 0:01:52]} Qd8 {[%emt 0:03:46]} 13. Be3 {[%emt 0:04:59]} a6 {[%emt 0:04:42] [#]} 14. Rad1 $146 {[%emt 0:01:25]} ({Predecessor:} 14. Rac1 b6 15. Rfd1 Bb7 16. Ne5 Qe8 17. Nxc6 Qxc6 18. d5 exd5 19. Nxd5 Qxd5 20. Bxh7+ Kxh7 21. Rxd5 Bxd5 22. Bxb6 {0-1 (41) Barbiso,T-Bekker Jensen,A (2070) Oropesa del Mar 1998}) 14... Nd5 {[%emt 0:01:43]} 15. Nxd5 {[%emt 0:05:42]} exd5 {[%emt 0:00:51]} 16. Ne5 {[%emt 0:00:23]} Nxe5 {[%emt 0:09:20]} (16... g6 $14) 17. dxe5 $16 {[%emt 0:00:45]} g6 {[%emt 0:00:30]} 18. f4 {[%emt 0:00:54] Hoping for f5. 0x0.0002da4e566cdp-1022s more active pieces. The black rooks are badly placed.} f5 {[%emt 0:03:30] [#]} (18... d4 $16) 19. Bc4 $1 $18 {[%emt 0:02:11][%mdl 512]} Be6 {[%emt 0:01:58] [#]} 20. Qf3 $1 {[%emt 0:00:26] Weighted Error Value: White=0.10 (very precise) /Black=0.24 (precise)} 1-0

[Event "34th GER-ch Seniors-65 2022"]
[Site "Magdeburg"]
[Date "2022.08.12"]
[Round "1.3"]
[White "Klundt, Klaus"]
[Black "Hartstock, Elmar"]
[Result "1-0"]
[ECO "B28"]
[WhiteElo "2288"]
[BlackElo "1853"]
[Annotator "TA"]
[PlyCount "43"]
[EventDate "2022.08.12"]
[EventType "swiss"]
[EventCountry "GER"]
[SourceTitle "playchess.com"]
[Source "ChessBase"]
[SourceQuality "1"]
[TimeControl "40/5400+30:1800+30"]

{[%evp 10,43,43,63,83,74,602,590,589,389,486,412,585,391,879,879,991,954,950,945,2158,1515,2524,1281,1204,1131,1629,1582,1667,1645,1882,1868,1840,1850,1942,1799]} 1. e4 {[%emt 0:00:02]} c5 {[%emt 0:00:18]} 2. Nf3 {[%emt 0:00:09][%cal Bg1f3,Bf3d4,Bd4f5,Bf5g7,Bg7h5,Bh5f6][%mdl 32]} a6 {[%emt 0:00:33]} 3. Nc3 {[%emt 0:01:04]} Nc6 {[%emt 0:00:41]} 4. d4 {[%emt 0:00:26]} cxd4 {[%emt 1:30:58]} 5. Nxd4 {[%emt 1:31:19]} e5 {[%emt 0:00:00]} 6. Nf5 {[%emt 0:00:00]} Nf6 {[%emt 0:00:00][%cal Od7d5] B28: Sicilian: 2 Nf3 a6 (O'Kelly Variation).} 7. Bg5 {[%emt 0:00:00] White is much more active. The black rooks are badly placed.} Bb4 $2 {[%emt 0:00:00][%mdl 8192]} (7... h6 $16 8. Bxf6 Qxf6) 8. Nxg7+ $18 {[%emt 0:00:00]} Kf8 {[%emt 0:00:00]} 9. Bh6 {[%emt 0:00:00] [#]} Kg8 $146 {[%emt 0:00:00]} (9... Bxc3+ $2 10. bxc3 Qa5 11. Nh5+ Ke7 12. Nxf6 $18) ({Predecessor:} 9... Ke7 10. Nf5+ Ke8 11. a3 Bxc3+ 12. bxc3 Nxe4 13. Bc4 Qa5 14. O-O d5 15. Ng7+ Ke7 16. Qxd5 Qxd5 17. Bxd5 Nxc3 {1-0 (37) Andrejevic,M (1984)-Ruzicic,M Belgrade 2008}) 10. Nh5 {[%emt 0:00:00] [#] aiming for Qf3.} d5 {[%emt 0:00:00]} (10... Nd4 {was called for.} 11. Bc4 Qb6) 11. Bg5 {[%emt 0:00:00]} Bxc3+ $2 {[%emt 0:00:00]} (11... Be7 12. Bxf6 (12. exd5 Nxd5 13. Nxd5 Bxg5 $18) 12... Bxf6 13. Nxd5 Bh4) 12. bxc3 {[%emt 0:00:00] White is clearly winning.} Qa5 {[%emt 0:00:00]} 13. Nxf6+ {[%emt 0:00:00]} Kg7 {[%emt 0:00:00]} 14. Nxd5 {[%emt 0:00:00]} Kg6 {[%emt 0:00:00] Inhibits Qh5+.} 15. h4 {[%emt 0:00:00][%cal Bh2h4,Bh4h5][%mdl 32] [#] White threatens Qf3 and mate.} Be6 {[%emt 0:00:00]} 16. h5+ {[%emt 0:00:00]} Kg7 {[%emt 0:00:00]} 17. Bf6+ {[%emt 0:00:00]} Kg8 {[%emt 0:00:00]} 18. Qf3 {[%emt 0:00:00] Strongly threatening Qg3+.} Kf8 {[%emt 0:00:00]} 19. Bxh8 {[%emt 0:00:00]} Bxd5 {[%emt 0:00:00]} 20. exd5 {[%emt 0:00:00]} Nd4 {[%emt 0:00:00]} 21. Qd3 {[%emt 0:00:00]} Rc8 {[%emt 0:00:00]} 22. Rh3 {[%emt 0:00:00] Black did not feel at home in the position after the opening.  Weighted Error Value: White=0.66/Black=2.00} 1-0

[Event "34th GER-ch Seniors-65 2022"]
[Site "Magdeburg"]
[Date "2022.08.12"]
[Round "1.4"]
[White "Lindner, Helmut"]
[Black "Polster, Wolfgang"]
[Result "0-1"]
[ECO "C06"]
[WhiteElo "1847"]
[BlackElo "2237"]
[Annotator "TA"]
[PlyCount "106"]
[EventDate "2022.08.12"]
[EventType "swiss"]
[EventCountry "GER"]
[SourceTitle "playchess.com"]
[Source "ChessBase"]
[SourceQuality "1"]
[TimeControl "40/5400+30:1800+30"]

{[%evp 15,106,31,18,11,6,12,35,22,30,33,31,27,60,52,58,53,81,79,81,85,87,95,108,56,59,56,68,56,52,55,54,30,44,49,55,-3,95,0,0,-45,-37,-32,-34,-34,-10,-10,-2,-40,-47,-72,-39,-39,-39,-40,-37,-37,-12,-29,-2,-12,-14,-19,0,-137,-146,-206,-97,-125,-98,-211,-211,-211,-211,-211,-211,-211,-207,-200,-191,-180,-180,-311,-304,-304,-284,-295,-256,-502,-498,-487,-461,-387,-348]} 1. e4 {[%emt 0:00:04]} e6 {[%emt 0:00:38]} 2. d4 {[%emt 0:00:17]} d5 {[%emt 0:00:28]} 3. Nd2 {[%emt 0:00:46]} a6 {[%emt 0:00:43]} 4. c3 {[%emt 0:01:14]} c5 {[%emt 0:00:40]} 5. Ngf3 {[%emt 0:01:35]} Nf6 {[%emt 0:01:06]} 6. e5 {[%emt 0:01:48]} Nfd7 {[%emt 0:00:34]} 7. Bd3 {[%emt 0:03:53]} Nc6 {[%emt 0:01:10]} 8. O-O {[%emt 0:03:22]} Be7 {[%emt 0:00:38]} 9. Bb1 {[%emt 0:03:02] [#] C06: French Tarrasch: 3...Nf6 4 e5 Nfd7 5 Bd3 main lines.} cxd4 $146 {[%emt 0:03:10]} ({Predecessor:} 9... b5 10. a3 cxd4 11. cxd4 Qb6 12. Nb3 a5 13. Be3 a4 14. Nc1 Na5 15. Nd2 Nc4 16. Nxc4 bxc4 {1-0 (51) Sandhoefner,F (2334)-Schwabeneder,F (2455) Aschach 2018}) 10. cxd4 {[%emt 0:01:19]} Qb6 {[%emt 0:00:48]} 11. Nb3 {[%emt 0:04:31] White is slightly better.} a5 {[%emt 0:01:12]} 12. a4 $1 {[%emt 0:05:44]} Qd8 {[%emt 0:02:11]} 13. Bd2 {[%emt 0:07:53]} Nb6 {[%emt 0:01:31]} 14. Nc1 {[%emt 0:04:11]} Nc4 {[%emt 0:04:41]} 15. Bc3 {[%emt 0:04:50]} Bb4 {[%emt 0:03:20]} 16. Ne2 {[%emt 0:02:52]} Bxc3 {[%emt 0:00:44]} 17. bxc3 {[%emt 0:01:15]} f6 {[%emt 0:05:42]} 18. exf6 {[%emt 0:05:58]} Qxf6 {[%emt 0:00:27]} 19. Nd2 {[%emt 0:01:20]} (19. Ng3 $16) 19... Nd6 $14 {[%emt 0:05:51]} 20. Re1 {[%emt 0:06:26]} O-O {[%emt 0:01:42]} 21. Nf3 {[%emt 0:04:56]} Bd7 {[%emt 0:01:21]} 22. Qd3 {[%emt 0:02:01]} g6 {[%emt 0:01:52]} 23. Ng3 {[%emt 0:02:00]} Rac8 {[%emt 0:02:36]} 24. Ra2 {[%emt 0:03:10]} Nc4 {[%emt 0:02:06]} 25. Rae2 {[%emt 0:01:41]} ({Better is} 25. Nf1 $14) 25... Ne7 {[%emt 0:02:16]} (25... Nd8 $11) 26. Nh5 {[%emt 0:02:05]} Qf5 $11 {[%emt 0:00:43]} 27. Qxf5 {[%emt 0:03:37]} (27. Ng3 $5 {[%cal Rg3f5]} Qxd3 28. Bxd3 $11) 27... Nxf5 {[%emt 0:00:19]} 28. Bxf5 {[%emt 0:00:44]} Rxf5 {[%emt 0:00:32]} 29. Ng3 {[%emt 0:01:15]} Rf6 {[%emt 0:00:46]} (29... Rff8 $5 {[%cal Rd7a4]}) 30. Ra2 {[%emt 0:03:45]} Rff8 {[%emt 0:04:31]} 31. Ng5 {[%emt 0:02:21]} Rfe8 {[%emt 0:00:28]} 32. f4 {[%emt 0:03:48]} Nd6 {[%emt 0:02:08]} 33. Ne2 {[%emt 0:01:17]} Rc4 {[%emt 0:00:38]} 34. Rea1 {[%emt 0:01:24]} Rc7 {[%emt 0:04:11]} 35. Nf3 {[%emt 0:01:19]} Nc4 {[%emt 0:00:15]} 36. Kf2 {[%emt 0:00:57]} b5 {[%emt 0:02:49]} 37. axb5 {[%emt 0:01:54]} Bxb5 {[%emt 0:00:08]} 38. Ne5 {[%emt 0:02:20]} a4 {[%emt 0:02:35][%cal Ba5a4,Ba4a3,Ba3a2][%mdl 32]} 39. Rb1 {[%emt 0:02:15]} (39. Nxc4 $11 {remains equal.} Rxc4 40. Rb1) 39... Nd6 $17 {[%emt 0:00:27]} 40. Ke3 {[%emt 0:01:27]} (40. c4 $17 {keeps fighting.} Bxc4 41. Nxc4 Rxc4 42. Rb6 Ne4+ 43. Ke3) 40... Ra8 {[%emt 0:00:37]} (40... Bxe2 $19 41. Kxe2 Ne4) 41. Nd3 {[%emt 0:31:16]} a3 {[%emt 0:34:00] Black is more active.} 42. Kd2 {[%emt 0:00:00]} (42. Rb3 $17 {was necessary.}) 42... Ne4+ $19 {[%emt 0:00:00]} 43. Kc2 {[%emt 0:00:00]} Bc4 {[%emt 0:00:00]} 44. Raa1 {[%emt 0:00:00]} a2 {[%emt 0:00:00]} 45. Rb2 {[%emt 0:00:00]} Ra3 {[%emt 0:00:00]} 46. Ndc1 {[%emt 0:00:00]} Bxe2 {[%emt 0:00:00] Really sharp!} 47. Nxe2 {[%emt 0:00:00]} Nxc3 {[%emt 0:00:00]} 48. Nxc3 {[%emt 0:00:00]} (48. Rb8+ $142 Kg7 49. Kb2) 48... Rcxc3+ {[%emt 0:00:00] KRR-KRR} 49. Kd1 {[%emt 0:00:00]} Rc4 {[%emt 0:00:00]} 50. Rd2 {[%emt 0:00:00]} Raa4 {[%emt 0:00:00]} 51. g3 $2 {[%emt 0:00:00] [#]} (51. Raxa2 Rxa2 52. Rxa2) 51... Rxd4 {[%emt 0:00:00]} 52. Raxa2 {[%emt 0:00:00]} Rxa2 {[%emt 0:00:00]} 53. Rxd4 {[%emt 0:00:00]} Rxh2 {[%emt 0:00:00] Weighted Error Value: White=0.30/Black=0.15 (very precise)} 0-1

[Event "34th GER-ch Seniors-65 2022"]
[Site "Magdeburg"]
[Date "2022.08.12"]
[Round "1.5"]
[White "Klein, Gernot"]
[Black "Buchal, Stephan"]
[Result "0-1"]
[ECO "B15"]
[WhiteElo "1853"]
[BlackElo "2230"]
[Annotator "TA"]
[PlyCount "102"]
[EventDate "2022.08.12"]
[EventType "swiss"]
[EventCountry "GER"]
[SourceTitle "playchess.com"]
[Source "ChessBase"]
[SourceQuality "1"]
[TimeControl "40/5400+30:1800+30"]

{[%evp 11,101,62,66,36,72,60,64,47,45,48,62,45,69,4,62,27,20,29,114,24,51,55,81,0,22,-59,-72,-65,-72,-66,-16,-65,-67,-179,-170,-135,-81,-220,-216,-293,-266,-238,0,-160,-38,-33,-37,-28,-31,-52,36,-8,0,-100,-104,-251,36,68,67,19,22,31,40,26,31,-96,16,0,0,-39,0,-219,-227,-521,-526,-1177,-1180,-1174,-1166,-1164,-1166,-1158,-1139,-1089,-1040,-1148,-1133,-5356,-5327,-29992,-29993,-29999]} 1. e4 {[%emt 0:07:35]} g6 {[%emt 0:00:14]} 2. Nc3 {[%emt 0:00:13]} Bg7 {[%emt 0:00:33]} 3. f4 {[%emt 0:00:11]} c6 {[%emt 0:02:39]} 4. Nf3 {[%emt 0:00:08]} d5 {[%emt 0:00:25]} 5. e5 {[%emt 0:00:04]} Nh6 {[%emt 0:01:00]} 6. d4 {[%emt 0:00:18]} O-O {[%emt 0:03:57]} 7. h3 {[%emt 0:00:20] Prevents Bg4. B15: Caro-Kann: 3 Nc3: 3...g6 and 3...dxe4 4 Nxe4 Nf6 5 Nxf6+ exf6.} f6 {[%emt 0:00:33]} 8. Be3 {[%emt 0:01:14]} Qb6 {[%emt 0:15:10] was the old line (8...fxe5).} 9. Na4 {[%emt 0:07:16] White is slightly better.} Qa5+ {[%emt 0:00:41]} 10. c3 {[%emt 0:02:00] [#]} Qc7 $146 {[%emt 0:08:05]} ({Predecessor:} 10... Nf5 11. Bf2 fxe5 12. dxe5 Nd7 13. b4 Qc7 14. Bd3 a5 15. a3 axb4 16. axb4 Nh6 {0-1 (51) Shomoev,A (2557)-Kokarev,D (2635) Moscow 2013}) 11. Be2 {[%emt 0:04:29]} b6 {[%emt 0:07:15]} 12. O-O {[%emt 0:03:57]} (12. Bf2 $14) 12... Nd7 {[%emt 0:07:44]} (12... Nf5 $11 13. Bf2 Bh6) 13. b3 {[%emt 0:10:59]} Nf5 {[%emt 0:03:34]} 14. Bf2 {[%emt 0:00:24]} fxe5 {[%emt 0:04:05]} (14... Bh6 $11) 15. dxe5 {[%emt 0:01:26]} (15. fxe5 $16 Bh6 16. Bd3) 15... e6 {[%emt 0:06:50]} 16. g4 {[%emt 0:11:56]} Nh6 {[%emt 0:08:59]} 17. Be3 {[%emt 0:07:52]} (17. Bg3 $16) 17... Bb7 {[%emt 0:01:29]} 18. Nd4 {[%emt 0:05:39]} (18. Qe1 $1 $11) 18... Rae8 $15 {[%emt 0:00:35][%cal Og6g5]} 19. g5 {[%emt 0:01:11]} Nf5 {[%emt 0:02:23]} 20. Nxf5 {[%emt 0:00:07]} Rxf5 {[%emt 0:00:12]} (20... exf5 $15 21. Bf3 Nxe5 $1 22. fxe5 Ba6) 21. Bd3 {[%emt 0:01:20]} (21. Bg4 $11 {feels stronger.}) 21... Rf7 $1 {[%emt 0:01:22]} 22. Rc1 {[%emt 0:03:01]} (22. Qe2 $15) 22... c5 {[%emt 0:05:35][%cal Od7e5] Strongly threatening ...Nxe5!} 23. Qg4 {[%emt 0:04:08]} Qc6 {[%emt 0:03:19]} (23... Ref8 $142 {[%cal Og7e5]} 24. Qxe6 Nxe5 25. fxe5 Bxe5) 24. Be2 {[%emt 0:04:14]} (24. Qg2 $17 {only move.}) 24... Ref8 $19 {[%emt 0:01:02][%cal Od7e5]} ({And not} 24... d4 25. cxd4 (25. Bf3 $2 Qxf3 26. Rxf3 Nxe5 $19) 25... Qe4 26. Qf3 Qxf3 27. Bxf3 Bxf3 28. Rxf3 $17) 25. Qg2 {[%emt 0:04:25]} Qc7 {[%emt 0:04:40][%cal Od5d4] White must now prevent ...d4!} 26. Qg4 {[%emt 0:01:23]} Qc6 {[%emt 0:00:34][%cal Od7e5] ...Nxe5! is the strong threat.} 27. Qg2 $1 {[%emt 0:00:05]} Qc8 {[%emt 0:00:49]} (27... b5 $1 $17 {[%cal Rb5a4]} 28. Nb2 Qb6) 28. Qg4 $15 {[%emt 0:00:35]} Nb8 {[%emt 0:03:47][%cal Bd7b8,Bb8c6,Bc6e7,Be7f5][%mdl 32]} 29. h4 {[%emt 0:02:22]} Nc6 {[%emt 0:02:15]} 30. h5 {[%emt 0:02:42]} gxh5 {[%emt 0:00:24]} (30... d4 $15 31. cxd4 cxd4 32. Bxd4 Qd7) 31. Qxh5 {[%emt 0:00:09]} Ne7 {[%emt 0:00:31]} 32. Rf2 {[%emt 0:02:30]} (32. Qh3 $11) 32... Nf5 $1 $17 {[%emt 0:02:19]} 33. Rh2 {[%emt 0:03:09]} Bh8 $2 {[%emt 0:02:05]} (33... Bxe5 $1 $19 34. Bd3 Bd6 35. Bxf5 exf5) 34. Bf2 $14 {[%emt 0:02:44]} Bc6 {[%emt 0:00:52]} 35. Bd3 {[%emt 0:01:10]} (35. Bg4 $14 Rg7 36. Nb2) 35... Rg7 $11 {[%emt 0:00:20]} 36. Nb2 {[%emt 0:02:11]} Be8 {[%emt 0:00:08]} 37. Qh3 {[%emt 0:01:07]} Bg6 {[%emt 0:00:04]} 38. Nd1 {[%emt 0:01:02] [#]} (38. Re1 $14 {stays ahead.}) 38... Qd7 {[%emt 0:01:07]} (38... Ne7 $1 $17 {Hoping for ...Bxd3.} 39. Be2 (39. Bxg6 $2 Nxg6 40. Bg3 Nxf4 $19) 39... Rxf4) 39. Be2 {[%emt 0:01:53]} d4 {[%emt 0:01:16]} 40. cxd4 {[%emt 0:00:52]} Nxd4 {[%emt 0:00:28]} (40... Rgf7 $5 {[%cal Rf5d4]} 41. dxc5 Qd2 $11) 41. Bg4 {[%emt 0:02:39]} (41. Bxd4 $11 {and White has nothing to worry.} Qxd4+ 42. Rf2) 41... Rxf4 $19 {[%emt 0:04:02]} 42. Ne3 $2 {[%emt 0:06:44]} (42. Be3 Rf8 43. Bxd4 Qxd4+ 44. Ne3) 42... Rgf7 {[%emt 0:04:27]} 43. Nc4 {[%emt 0:03:14] [#]} Rxg4+ {[%emt 0:01:05][%mdl 512]} 44. Qxg4 {[%emt 0:00:20]} Nf3+ {[%emt 0:00:13]} 45. Kg2 {[%emt 0:02:26]} Nxh2 {[%emt 0:00:16]} 46. Kxh2 {[%emt 0:00:14]} Rxf2+ {[%emt 0:00:16]} 47. Kg1 {[%emt 0:00:22]} Rf8 {[%emt 0:02:41]} 48. Rd1 {[%emt 0:00:59]} Qf7 {[%emt 0:00:44]} 49. Qg2 {[%emt 0:03:14] Prevents Qf2+.} Qf4 {[%emt 0:02:18] ( -> ...b5)} 50. Rd6 {[%emt 0:04:12]} Be4 {[%emt 0:01:04]} 51. Qh3 {[%emt 0:02:43]} Qf2# {[%emt 0:00:12] Weighted Error Value: White=0.83/Black=0.37} 0-1

[Event "34th GER-ch Seniors-65 2022"]
[Site "Magdeburg"]
[Date "2022.08.12"]
[Round "1.6"]
[White "Rahls, Peter"]
[Black "Bars, Joachim"]
[Result "1-0"]
[ECO "B12"]
[WhiteElo "2223"]
[BlackElo "1820"]
[Annotator "TA"]
[PlyCount "109"]
[EventDate "2022.08.12"]
[EventType "swiss"]
[EventCountry "GER"]
[SourceTitle "playchess.com"]
[Source "ChessBase"]
[SourceQuality "1"]
[TimeControl "40/5400+30:1800+30"]

{[%evp 10,109,43,-2,27,27,101,56,52,46,50,20,43,39,46,42,43,44,49,-1,43,39,43,39,67,60,97,77,94,83,91,55,96,114,106,112,106,102,107,126,146,150,133,77,81,28,65,28,39,40,90,17,108,79,154,161,175,174,156,172,272,265,293,294,285,278,251,235,240,156,304,300,268,193,380,414,412,407,431,398,454,445,407,430,315,368,389,333,538,489,495,414,429,0,397,405,627,534,1447,597,654,582]} 1. e4 {[%emt 0:02:52]} c6 {[%emt 0:00:12]} 2. d4 {[%emt 0:00:14]} d5 {[%emt 0:00:06]} 3. e5 {[%emt 0:00:12]} Bf5 {[%emt 0:00:18]} 4. Nf3 {[%emt 0:00:29]} e6 {[%emt 0:00:16]} 5. Be2 {[%emt 0:00:23]} Nd7 {[%emt 0:00:47]} 6. Be3 {[%emt 0:00:35]} Qc7 {[%emt 0:00:28] B12: Caro-Kann: Advance Variation.} (6... Qb6 $5 {[%cal Rb6b2]} 7. Qc1 f6 $11) 7. O-O {[%emt 0:00:40]} c5 {[%emt 0:00:28]} (7... Ne7 $11 {keeps the balance.}) 8. c3 {[%emt 0:00:54]} Ne7 {[%emt 0:00:52] White is slightly better.} 9. Na3 {[%emt 0:04:14] Hoping for Nb5.} a6 {[%emt 0:00:43] Prevents Nb5.} 10. Rc1 {[%emt 0:04:09]} Nc6 {[%emt 0:04:18]} 11. Nh4 {[%emt 0:04:10] [#]} Be4 $146 {[%emt 0:00:40]} ({Predecessor:} 11... Be7 12. Nxf5 exf5 13. Bf3 cxd4 14. cxd4 Nb6 15. Qb3 Rd8 16. Nb1 Nc4 17. Bxd5 N6a5 18. Rxc4 {1-0 (29) Valverde Lujan,C-Franco Mansilla,M Valladolid 1996}) 12. f3 {[%emt 0:01:01]} Bg6 {[%emt 0:00:05]} 13. Nxg6 {[%emt 0:00:21]} hxg6 {[%emt 0:00:04]} 14. Qd2 {[%emt 0:03:00]} (14. Nc2 $14) 14... c4 {[%emt 0:00:42]} 15. Nc2 {[%emt 0:01:13]} Qd8 {[%emt 0:03:56]} 16. Bf4 {[%emt 0:02:13]} Ne7 {[%emt 0:02:00]} 17. g4 {[%emt 0:01:19]} Ng8 {[%emt 0:02:15]} 18. Bg3 {[%emt 0:02:10]} Be7 {[%emt 0:00:46]} 19. Ne3 {[%emt 0:06:39]} Bh4 {[%emt 0:02:24]} 20. Kg2 {[%emt 0:00:40]} Qe7 {[%emt 0:07:32]} 21. b3 {[%emt 0:02:30]} b5 {[%emt 0:03:05]} 22. f4 {[%emt 0:02:35]} Nb6 {[%emt 0:00:51]} 23. bxc4 {[%emt 0:03:07]} Nxc4 {[%emt 0:02:06]} 24. Nxc4 {[%emt 0:00:51]} bxc4 {[%emt 0:01:43]} 25. Rb1 {[%emt 0:01:34]} Nh6 {[%emt 0:02:37]} 26. Qb2 {[%emt 0:04:32]} (26. Rb2 $142) 26... O-O $16 {[%emt 0:00:26]} 27. Qb4 {[%emt 0:01:10]} (27. Bf3 $16) 27... Qd8 {[%emt 0:03:13]} 28. Qb6 {[%emt 0:06:46]} Bxg3 {[%emt 0:04:30]} 29. Kxg3 {[%emt 0:01:25]} Qd7 {[%emt 0:00:53]} (29... Rb8 $14 30. Qxd8 (30. Qxa6 Ra8 $11) 30... Rfxd8) 30. Qa5 {[%emt 0:43:32]} (30. Bd1 $16) 30... Rfc8 {[%emt 0:57:14]} (30... Rfb8 $11 {remains equal.}) 31. Rb4 {[%emt 0:00:00] White now steadily converts the win.} Qa7 {[%emt 0:00:00]} (31... f6 $142) 32. Rfb1 {[%emt 0:00:00] aiming for Rb7.} Rab8 {[%emt 0:00:00] Against Rb7} 33. Bd1 {[%emt 0:00:00]} Rxb4 {[%emt 0:00:00]} 34. Qxb4 {[%emt 0:00:00]} Kh7 {[%emt 0:00:00]} (34... Qd7 {was called for.} 35. Ba4 Qd8) 35. Bc2 {[%emt 0:00:00]} Qd7 {[%emt 0:00:00]} 36. h4 {[%emt 0:00:00]} Kh8 {[%emt 0:00:00]} 37. Ba4 {[%emt 0:00:00]} Qd8 {[%emt 0:00:00]} 38. Qb6 {[%emt 0:00:00] Active counter play!} Qf8 {[%emt 0:00:00]} 39. Qd6 {[%emt 0:00:00] Prevents Qa3.} Kh7 {[%emt 0:00:00]} (39... Qxd6 $16 {was necessary.} 40. exd6 Rd8) 40. Qxf8 $18 {[%emt 0:00:00]} ({Avoid the trap} 40. Qxa6 $2 Qa3 $1 41. Qa5 (41. Qxc8 $2 {perishes.} Qxc3+ 42. Kg2 Qd2+ 43. Kh3 Qd3+ 44. Kg2 Qxb1 $19) 41... Ra8 $3 $19 {[%mdl 512]}) 40... Rxf8 {[%emt 0:00:00][%mdl 4096] Endgame KRB-KRN} 41. Rb6 {[%emt 0:13:36] Threatens to win with Bc2.} Ra8 $2 {[%emt 0:00:00]} (41... a5 42. Rb5 Ra8) 42. Bc2 {[%emt 0:02:51]} Kg8 {[%emt 0:00:00]} 43. a4 {[%emt 0:00:22][%cal Ba2a4,Ba4a5][%mdl 32]} Kf8 {[%emt 0:00:00]} 44. a5 {[%emt 0:00:42]} Ng8 {[%emt 0:00:00]} 45. f5 {[%emt 0:01:12]} gxf5 {[%emt 0:00:00]} 46. gxf5 {[%emt 0:00:04]} exf5 {[%emt 0:00:00]} 47. Bxf5 {[%emt 0:00:25]} Ne7 {[%emt 0:00:00]} 48. Kf4 {[%emt 0:00:44]} g6 $2 {[%emt 0:00:00]} (48... Ke8 {might work better.} 49. Bg4 Ng8) 49. Bh3 {[%emt 0:00:29]} Ra7 {[%emt 0:00:00]} 50. Ke3 {[%emt 0:02:01]} Kg7 {[%emt 0:00:00]} 51. Kf4 $2 {[%emt 0:00:38]} (51. Bg4 $18 Kf8 52. Kf4) 51... Ra8 $2 {[%emt 0:00:00][%mdl 8192]} (51... Kf8 $1 $11 52. Bg2 Kg7) 52. Rb7 {[%emt 0:00:38]} Nc6 {[%emt 0:00:27]} (52... Kf8 $142 53. Bg2 Ke8) 53. Bg2 {[%emt 0:01:01] White is clearly winning.} Nxa5 {[%emt 0:00:32] [#]} 54. Rd7 {[%emt 0:00:16]} (54. Rxf7+ $142 $3 {[%mdl 512]} Kxf7 (54... Kh6 55. Bxd5) 55. Bxd5+ Ke7 56. Bxa8) 54... Nb3 {[%emt 0:00:32]} 55. Bxd5 {[%emt 0:00:30] Weighted Error Value: White=0.38/Black=0.51} 1-0